bitfinex-derivatives/quotes_ETHF0:USTF0_20240818
["timestamp","ask_amount","ask_price","bid_price","bid_amount"]
[1724009232480,5.62385,2667.1,2667.0,0.00893247]
[1724009232678,1.87419,2667.2,2667.0,0.00893247]
[1724009232881,6.02694,2667.3,2667.0,0.00893247]
[1724009233778,6.02694,2667.3,2667.0,1.88324247]
[1724009234277,6.02694,2667.3,2667.1,1.0762]
[1724009238089,6.02697,2667.3,2667.1,1.0762]
[1724009238593,4.1528,2667.3,2667.1,1.0762]
[1724009239087,4.1528,2667.3,2667.1,2.95042]
[1724009240788,0.945,2667.3,2667.1,2.95042]
[1724009244879,2.81918,2667.2,2667.1,1.0762]
[1724009245288,0.945,2667.2,2667.1,1.0762]
[1724009251489,2.81918,2667.2,2667.1,1.0762]
[1724009252802,0.945,2667.2,2667.1,1.0762]
[1724009255394,2.81918,2667.2,2667.1,1.0762]
[1724009255598,0.945,2667.2,2667.1,1.0762]
[1724009256096,2.81918,2667.2,2667.1,1.0762]
[1724009261994,1.87425,2667.1,2667.0,0.00893247]
[1724009262398,2.22195,2667.1,2667.0,0.00893247]
[1724009263707,2.58825,2667.1,2667.0,0.00893247]
[1724009267526,6.33785,2667.1,2667.0,0.00893247]
[1724009268110,9.28681323,2667.1,2667.0,0.00893247]
[1724009269403,11.16106323,2667.1,2667.0,0.00893247]
[1724009270617,8.2121,2667.1,2667.0,0.00893247]
[1724009270799,11.65069081,2667.1,2667.0,0.00893247]
[1724009272193,1.8746,2666.6,2666.5,0.7145]
[1724009272399,2.8196,2666.6,2666.5,0.7145]
[1724009273003,2.8196,2666.6,2666.5,0.3683]
[1724009273200,2.8196,2666.6,2666.5,0.37219515]
[1724009273598,1.87457,2666.7,2666.5,0.37219515]
[1724009273908,2.81957,2666.7,2666.6,0.3624]
[1724009278515,3.17807,2666.7,2666.6,0.3624]
[1724009280808,2.81957,2666.7,2666.6,0.3624]
[1724009281209,0.945,2666.7,2666.6,0.3624]
[1724009281611,2.81953,2666.7,2666.6,0.3624]
[1724009290713,1.8746,2666.6,2666.5,0.37219515]
[1724009290918,3.1633,2666.6,2666.5,0.37219515]
[1724009294748,1.87457,2666.7,2666.5,2.24686515]
[1724009295026,0.0056184,2666.8,2666.7,1.87453]
[1724009295413,0.9506184,2666.8,2666.7,1.87453]
[1724009297422,0.9506184,2666.8,2666.6,1.87457]
[1724009297620,0.945,2666.7,2666.6,1.87457]
[1724009298031,0.945,2666.7,2666.6,5.62497]
[1724009303616,0.9506184,2666.8,2666.7,1.87453]
[1724009303817,0.0056184,2666.8,2666.7,2.81953]
[1724009304025,0.945,2667.4,2666.7,9.6946]
[1724009304239,2.81906,2667.4,2666.9,0.945]
[1724009304420,2.94897937,2667.7,2666.9,0.945]
[1724009304421,0.945,2667.0,2666.9,1.87439]
[1724009304621,0.945,2667.0,2666.9,0.3494]
[1724009304822,2.81932,2667.0,2666.9,0.3494]
[1724009305025,2.81932,2667.0,2666.5,0.00389515]
[1724009305026,1.87452,2666.8,2666.6,1.87458]
[1724009305324,2.81953,2666.7,2666.6,0.361]
[1724009305528,1.8746,2666.6,2666.5,0.35329515]
[1724009305929,2.81957,2666.7,2666.5,2.22793515]
[1724009306318,2.81957,2666.7,2666.6,1.8746]
[1724009306729,2.81957,2666.7,2666.5,2.22792515]
[1724009308328,2.81957,2666.7,2666.6,0.3436]
[1724009309623,0.945,2666.7,2666.6,2.2182]
[1724009310428,2.21912,2666.9,2666.6,0.3436]
[1724009310732,6.02715,2667.0,2666.8,1.87442]
[1724009310938,6.02715,2667.0,2666.9,0.3588]
[1724009312330,4.1528,2667.0,2666.9,0.3588]
[1724009312728,2.81932,2667.0,2666.9,0.3588]
[1724009312931,0.945,2667.0,2666.9,0.3588]
[1724009314437,2.81932,2667.0,2666.9,0.3588]
[1724009314664,0.945,2667.0,2666.9,0.3588]
[1724009318896,2.81932,2667.0,2666.9,0.3588]
[1724009319636,2.81932,2667.0,2666.7,0.3471]
[1724009319637,1.8744,2666.9,2666.7,0.3471]
[1724009319939,0.945,2666.8,2666.7,0.6957]
[1724009320436,0.945,2666.8,2666.7,6.31983]
[1724009326242,2.81946,2666.8,2666.7,6.31983]
[1724009326541,3.16816,2666.8,2666.7,6.31983]
[1724009326842,3.16816,2666.8,2666.7,2.57023]
[1724009327139,1.2937,2666.8,2666.7,6.31983]
[1724009328547,1.2937,2666.8,2666.7,2.57023]
[1724009328838,1.2937,2666.8,2666.7,6.31983]
[1724009329043,3.16816,2666.8,2666.7,2.57023]
[1724009329433,3.16816,2666.8,2666.7,0.6957]
[1724009329636,3.16816,2666.8,2666.6,1.87458]
[1724009329946,3.16816,2666.8,2666.6,2.22718]
[1724009330141,3.16816,2666.8,2666.7,1.87453]
[1724009331244,3.16816,2666.8,2666.6,2.22716]
[1724009332067,3.16816,2666.8,2666.7,1.87453]
[1724009332839,3.16816,2666.8,2666.6,2.22715]
[1724009333842,3.16816,2666.8,2666.7,1.87453]
[1724009334243,3.16816,2666.8,2666.6,2.22715]
[1724009334639,1.8746,2666.6,2666.5,0.00389515]
[1724009335642,2.2317,2666.6,2666.5,0.00389515]
[1724009337248,1.8746,2666.6,2666.5,1.87856515]
[1724009338856,1.8746,2666.6,2666.5,0.00389515]
[1724009339646,1.8746,2666.6,2666.5,1.87856515]
[1724009340550,1.8746,2666.6,2666.5,0.00389515]
[1724009340767,2.212,2666.6,2666.5,0.00389515]
[1724009342352,2.212,2666.6,2666.5,0.34139515]
[1724009342353,1.8746,2666.6,2666.5,0.34139515]
[1724009342651,3.2078,2667.0,2666.5,5.03679515]
[1724009342849,2.81944,2666.9,2666.7,1.87449]
[1724009343157,1.87446,2666.8,2666.7,1.87449]
[1724009343349,1.87446,2666.8,2666.6,1.87456]
[1724009343552,1.87446,2666.8,2666.7,1.87453]
[1724009343759,2.81946,2666.8,2666.7,1.87453]
[1724009345356,2.81946,2666.8,2666.6,1.87456]
[1724009345550,1.87453,2666.7,2666.5,0.34139515]
[1724009345758,6.52357937,2667.0,2666.5,0.00389515]
[1724009345759,2.8196,2666.6,2666.5,0.00389515]
[1724009346055,3.1685,2666.6,2666.5,0.00389515]
[1724009346752,3.1685,2666.6,2666.5,1.87853515]
[1724009347450,1.2939,2666.6,2666.5,1.87853515]
[1724009348264,3.1685,2666.6,2666.5,1.87853515]
[1724009349256,1.2939,2666.6,2666.5,1.87853515]
[1724009350042,1.87452,2666.8,2666.6,1.87456]
[1724009350255,2.81952,2666.8,2666.6,1.8746]
[1724009350447,2.81952,2666.8,2666.7,0.3397]
[1724009350951,2.81952,2666.8,2666.7,2.21423]
[1724009350952,0.945,2666.8,2666.7,2.21423]
[1724009351154,2.81946,2666.8,2666.7,2.21423]
[1724009351746,0.945,2666.8,2666.7,2.21423]
[1724009352454,2.81946,2666.8,2666.7,2.21423]
[1724009352952,0.945,2666.8,2666.7,2.21423]
[1724009355776,0.945,2666.8,2666.7,2.56483]
[1724009370269,0.945,2666.8,2666.7,2.22513]
[1724009370572,1.2866,2666.8,2666.7,0.3506]
[1724009370776,1.6516,2666.8,2666.7,2.22513]
[1724009372288,4.82329937,2667.0,2666.7,0.3506]
[1724009372567,1.87432,2667.0,2666.8,2.24383]
[1724009372885,0.945,2666.9,2666.8,0.3694]
[1724009373077,0.945,2666.9,2666.7,2.22508]
[1724009373270,1.3046,2666.9,2666.7,2.22508]
[1724009373573,1.3046,2666.9,2666.8,1.87446]
[1724009374475,1.3046,2666.9,2666.7,2.22508]
[1724009375078,1.3046,2666.9,2666.7,2.22509]
[1724009376068,1.3046,2666.9,2666.8,1.87446]
[1724009379991,1.3046,2666.9,2666.7,2.22508]
[1724009381270,1.3046,2666.9,2666.8,1.87446]
[1724009384385,3.17903,2666.9,2666.7,0.3506]
[1724009384593,0.945,2666.8,2666.7,0.3506]
[1724009384789,0.945,2666.8,2666.7,2.22513]
[1724009386189,0.945,2666.8,2666.5,0.98177047]
[1724009386371,2.8196,2666.6,2666.5,0.00389515]
[1724009386782,3.1693,2666.6,2666.5,0.00389515]
[1724009388080,2.8196,2666.6,2666.5,0.00389515]
[1724009390985,2.8196,2666.6,2666.5,1.87856515]
[1724009391186,1.8746,2666.6,2666.5,1.87856515]
[1724009391382,3.15918,2666.7,2666.5,1.87856515]
[1724009391585,2.81958,2666.7,2666.6,1.8746]
[1724009392995,2.81958,2666.7,2666.5,1.87851515]
[1724009393985,1.8746,2666.6,2666.5,1.87851515]
[1724009395489,1.8746,2666.6,2666.5,0.00389515]
[1724009395675,2.2156,2666.6,2666.5,0.00389515]
[1724009396383,2.2156,2666.6,2666.5,1.87856515]
[1724009396977,2.2156,2666.6,2666.5,0.00389515]
[1724009397177,3.1606,2666.6,2666.5,0.00389515]
[1724009398285,3.1606,2666.6,2666.5,1.87856515]
[1724009398678,3.1606,2666.6,2666.5,0.00389515]
[1724009398891,8.7856,2666.6,2666.5,0.00389515]
[1724009401981,6.911,2666.6,2666.5,0.00389515]
[1724009404099,9.85997937,2666.6,2666.5,0.00389515]
[1724009405391,6.911,2666.6,2666.5,0.00389515]
[1724009405787,11.911,2666.6,2666.5,0.00389515]
[1724009407583,6.911,2666.6,2666.5,0.00389515]
[1724009412896,10.1188,2666.6,2666.5,0.00389515]
[1724009414296,9.1738,2666.6,2666.5,0.00389515]
[1724009414495,10.1188,2666.6,2666.5,0.00389515]
[1724009418396,6.3684,2666.6,2666.5,0.00389515]
[1724009418596,10.1188,2666.6,2666.5,0.00389515]
[1724009421598,10.1188,2666.6,2666.3,0.0056184]
[1724009421599,1.87474,2666.4,2666.3,0.0056184]
[1724009421786,2.81974,2666.4,2666.3,0.0056184]
[1724009422606,2.81974,2666.4,2666.3,0.00878671]
[1724009424004,6.57014,2666.4,2666.3,0.00878671]
[1724009424304,6.57014,2666.4,2666.0,0.3559]
[1724009424305,1.87495,2666.1,2666.0,0.3559]
[1724009424490,1.87502,2666.0,2665.7,0.3422]
[1724009424688,6.02796,2665.8,2665.7,0.3422]
[1724009424903,6.02796,2665.8,2665.6,0.3529]
[1724009424904,1.87523,2665.7,2665.6,0.3529]
[1724009425202,2.22453,2665.7,2665.6,0.3529]
[1724009425403,2.22828682,2665.7,2665.6,0.35699965]
[1724009429496,0.00375682,2665.7,2665.6,0.35699965]
[1724009430107,1.87898682,2665.7,2665.6,0.35699965]
[1724009430402,0.00375682,2665.7,2665.6,0.35699965]
[1724009435405,1.87898682,2665.7,2665.6,0.35699965]
[1724009436602,0.00375682,2665.7,2665.6,0.35699965]
[1724009437005,1.87898682,2665.7,2665.6,0.35699965]
[1724009437299,0.94875682,2665.7,2665.6,0.35699965]
[1724009439511,2.82398682,2665.7,2665.6,0.35699965]
[1724009439913,0.94875682,2665.7,2665.6,0.35699965]
[1724009440413,2.82398682,2665.7,2665.6,0.35699965]
[1724009440643,0.00375682,2665.7,2665.6,2.23229965]
[1724009440906,0.00375682,2665.7,2665.6,10.13629965]
[1724009442211,0.00375682,2665.7,2665.6,6.92849965]
[1724009443614,0.00375682,2665.7,2665.6,5.98349965]
[1724009444608,0.00375682,2665.7,2665.6,9.19129965]
[1724009446410,0.00375682,2665.7,2665.6,10.13629965]
[1724009447812,0.00375682,2665.7,2665.6,9.19129965]
[1724009448819,0.00375682,2665.7,2665.6,10.13629965]
[1724009450712,0.00375682,2665.7,2665.6,5.44009965]
[1724009451023,0.94875682,2665.7,2665.6,5.44009965]
[1724009453913,0.94875682,2665.7,2665.6,2.23229965]
[1724009454107,0.94875682,2665.7,2665.6,5.44009965]
[1724009454926,0.94875682,2665.7,2665.6,2.23229965]
[1724009455113,0.94875682,2665.7,2665.6,5.44009965]
[1724009456823,0.00375682,2665.7,2665.6,2.23229965]
[1724009457221,0.00375682,2665.7,2665.6,5.44009965]
[1724009460721,0.00375682,2665.7,2665.6,2.23229965]
[1724009461025,0.00375682,2665.7,2665.6,5.44009965]
[1724009462026,0.00375682,2665.7,2665.6,2.23229965]
[1724009464029,1.87898682,2665.7,2665.6,2.23229965]
[1724009464416,2.82398682,2665.7,2665.6,0.35699965]
[1724009464825,3.16858682,2665.7,2665.6,0.35699965]
[1724009465129,3.16858682,2665.7,2665.6,0.00409965]
[1724009465329,8.79501682,2665.7,2665.6,0.00409965]
[1724009465529,9.13861682,2665.7,2665.6,0.00409965]
[1724009469022,7.26338682,2665.7,2665.6,0.00409965]
[1724009472230,1.87537,2665.5,2665.4,0.0056184]
[1724009472434,6.02817,2665.5,2665.4,0.0056184]
[1724009473229,6.02817,2665.5,2665.4,0.00835145]
[1724009473833,11.65554,2665.5,2665.4,0.00835145]
[1724009474037,1.8758,2664.9,2664.8,0.3627]
[1724009474226,1.87594,2664.7,2664.6,0.7104]
[1724009474427,1.87603,2664.6,2664.3,2.24478]
[1724009474627,1.87603,2664.6,2664.4,0.3477]
[1724009475037,1.87603,2664.6,2664.4,0.35058852]
[1724009475240,0.3454,2664.7,2664.4,0.35058852]
[1724009475529,1.87608,2664.5,2664.4,0.35058852]
[1724009475733,2.82108,2664.5,2664.4,0.35058852]
[1724009476239,2.82108,2664.5,2664.4,0.00288852]
[1724009476437,0.945,2664.5,2664.4,0.00288852]
[1724009477833,0.945,2664.5,2664.4,1.87903852]
[1724009478040,0.945,2664.7,2664.6,1.87599]
[1724009478442,0.945,2664.7,2664.5,1.87603]
[1724009478637,0.945,2664.7,2664.6,0.3681]
[1724009478834,0.945,2664.7,2664.6,0.7074]
[1724009480343,2.82094,2664.7,2664.6,0.7074]
[1724009481754,0.945,2664.7,2664.6,0.7074]
[1724009482042,2.82094,2664.7,2664.6,0.7074]
[1724009483535,3.17474,2664.7,2664.6,0.7074]
[1724009484236,1.2988,2664.7,2664.6,0.7074]
[1724009484540,0.945,2664.7,2664.6,0.7074]
[1724009484742,2.82094,2664.7,2664.6,0.7074]
[1724009485469,3.18814,2664.7,2664.6,0.7074]
[1724009486433,3.18814,2664.7,2664.4,2.22459852]
[1724009486434,1.87601,2664.6,2664.4,2.22459852]
[1724009486647,0.945,2664.5,2664.4,1.87899852]
[1724009488032,0.945,2664.6,2664.5,1.87606]
[1724009489338,0.945,2664.6,2664.4,1.87898852]
[1724009491549,0.945,2664.6,2664.5,1.87608]
[1724009493871,0.945,2664.6,2664.4,1.87899852]
[1724009494040,0.945,2664.5,2664.4,1.87899852]
[1724009494458,0.945,2664.5,2664.4,5.63179852]
[1724009498138,0.3465,2664.8,2664.6,1.87601]
[1724009498343,0.3465,2664.8,2664.4,3.75568852]
[1724009498344,3.2078,2665.3,2664.7,3.52803]
[1724009498553,3.2078,2665.3,2665.2,1.87559]
[1724009498745,4.1528,2665.3,2665.2,1.87559]
[1724009499451,4.1528,2665.3,2664.9,4.1528]
[1724009499858,3.2078,2665.3,2665.2,1.87559]
[1724009500044,4.1528,2665.3,2665.2,1.87559]
[1724009500546,4.1528,2665.3,2664.9,4.1528]
[1724009500547,6.02832,2665.3,2665.0,1.8757]
[1724009500755,0.945,2665.1,2665.0,1.8757]
[1724009503145,2.8207,2665.1,2664.8,2.24052]
[1724009503344,0.945,2664.9,2664.8,2.24052]
[1724009503857,0.945,2664.9,2664.8,5.99332]
[1724009506261,0.945,2664.9,2664.5,4.176]
[1724009506552,0.945,2664.9,2664.8,2.21267]
[1724009507455,0.3577,2665.4,2664.8,2.21267]
[1724009507456,2.23317,2665.4,2665.2,1.87553]
[1724009507651,2.23317,2665.4,2665.3,0.3368]
[1724009508360,3.2078,2665.5,2665.3,0.3368]
[1724009508654,0.945,2665.5,2665.4,1.87545]
[1724009508846,0.945,2665.5,2665.4,2.57585]
[1724009509247,0.0056184,2665.8,2665.4,4.4524]
[1724009509449,0.0056184,2665.8,2665.6,5.0831]
[1724009509743,0.9506184,2665.8,2665.6,5.0831]
[1724009509944,0.94875682,2665.7,2665.6,3.7512]
[1724009510152,0.94875682,2665.7,2665.5,1.87533]
[1724009510361,0.945,2665.6,2665.5,1.87533]
[1724009510659,0.37555682,2665.7,2665.5,1.87533]
[1724009510950,0.37555682,2665.7,2665.3,3.5446]
[1724009511155,3.58335682,2665.7,2665.3,5.42011]
[1724009511352,0.37555682,2665.7,2665.3,3.5446]
[1724009511546,0.37555682,2665.7,2665.5,1.87535]
[1724009511547,2.25079682,2665.7,2665.5,1.87535]
[1724009511749,0.37555682,2665.7,2665.5,1.87535]
[1724009511957,0.37555682,2665.7,2665.4,1.87542]
[1724009512157,2.25084682,2665.7,2665.4,1.87542]
[1724009512451,1.87531,2665.6,2665.4,1.87542]
[1724009514561,2.25083682,2665.7,2665.5,1.87537]
[1724009516363,1.87533,2665.6,2665.4,1.87542]
[1724009516748,2.25083682,2665.7,2665.5,1.87537]
[1724009516955,0.37555682,2665.7,2665.3,0.52601017]
[1724009517154,0.37555682,2665.7,2665.6,1.8753]
[1724009518059,0.00375682,2665.7,2665.6,1.8753]
[1724009518249,0.00375682,2665.7,2665.6,5.6265]
[1724009518447,0.0056184,2665.8,2665.7,1.87523]
[1724009518653,0.0056184,2665.8,2665.7,6.31323]
[1724009519557,0.0094424,2665.8,2665.7,6.31323]
[1724009520360,0.0094424,2665.8,2665.7,1.87523]
[1724009522660,0.0094424,2665.8,2665.6,2.21806]
[1724009522960,0.0094424,2665.8,2665.6,0.3428]
[1724009523266,1.87531,2665.6,2665.4,1.8754]
[1724009523458,4.4739424,2665.8,2665.3,0.3447]
[1724009523459,1.8754,2665.5,2665.3,0.3447]
[1724009523661,2.23045,2665.4,2665.3,0.3447]
[1724009524060,0.355,2665.4,2665.3,0.3447]
[1724009524364,2.23045,2665.4,2665.3,0.3447]
[1724009525457,0.355,2665.4,2665.3,0.3447]
[1724009525960,0.355,2665.4,2665.3,2.22022]
[1724009526367,1.87533,2665.6,2665.4,1.87544]
[1724009528262,5.4333524,2665.8,2665.5,1.87532]
[1724009528570,1.87523,2665.7,2665.6,0.35]
[1724009529260,5.4333524,2665.8,2665.6,0.35]
[1724009529461,1.87523,2665.7,2665.6,0.35]
[1724009529656,1.87523,2665.7,2665.4,1.8754]
[1724009529856,0.3479,2665.6,2665.4,1.8754]
[1724009530567,0.3479,2665.6,2665.5,1.87537]
[1724009531575,5.4333524,2665.8,2665.5,1.87537]
[1724009531864,2.5734524,2665.8,2665.5,1.87537]
[1724009532074,2.5734524,2665.8,2665.6,0.3524]
[1724009532271,0.6982424,2665.8,2665.6,2.22768]
[1724009532472,0.946,2665.7,2665.6,2.22768]
[1724009533375,0.9554424,2665.8,2665.7,1.87523]
[1724009535461,0.9554424,2665.8,2665.6,2.22767]
[1724009535675,0.946,2665.7,2665.6,2.22767]
[1724009537163,0.9554424,2665.8,2665.7,1.87523]
[1724009537375,3.2078,2666.4,2666.2,1.87488]
[1724009537676,0.946,2666.3,2666.0,4.1538]
[1724009537874,0.946,2666.3,2666.2,1.87482]
[1724009538372,0.946,2666.4,2666.3,1.87481]
[1724009538568,0.946,2666.4,2666.3,2.2209305]
[1724009538769,0.94915188,2666.4,2666.3,2.2209305]
[1724009540682,0.00315188,2666.4,2666.3,2.2209305]
[1724009541067,0.00315188,2666.4,2666.3,5.9713305]
[1724009546671,0.00315188,2666.4,2666.3,9.1791305]
[1724009547573,0.00315188,2666.4,2666.3,5.9713305]
[1724009549382,0.00315188,2666.4,2666.3,2.2209305]
[1724009549569,0.00315188,2666.4,2666.3,5.9713305]
[1724009549773,0.00315188,2666.4,2666.3,2.2209305]
[1724009552576,1.87789188,2666.4,2666.3,0.3461205]
[1724009552772,2.24099188,2666.4,2666.3,0.3461205]
[1724009554885,0.36625188,2666.4,2666.3,0.3461205]
[1724009555380,0.00315188,2666.4,2666.3,0.3461205]
[1724009555585,0.00315188,2666.4,2666.3,2.2209305]
[1724009555777,0.00315188,2666.4,2666.3,0.3461205]
[1724009555974,0.00315188,2666.4,2666.3,9.1791305]
[1724009556181,0.00315188,2666.4,2666.3,5.9713305]
[1724009556584,0.00562905,2666.5,2666.4,1.87474]
[1724009556781,0.00562905,2666.5,2666.4,5.62514]
[1724009557591,0.00857398,2666.5,2666.4,5.62514]
[1724009560387,0.36767398,2666.5,2666.4,1.87474]
[1724009565293,0.00857398,2666.5,2666.4,1.87474]
[1724009567086,1.88325398,2666.5,2666.3,1.8792905]
[1724009567282,0.3649,2666.4,2666.3,1.8792905]
[1724009568687,0.3649,2666.4,2666.3,2.8242905]
[1724009570395,5.99004,2666.4,2666.3,0.0045205]
[1724009570587,5.99004,2666.4,2666.0,0.00562905]
[1724009570588,1.87495,2666.1,2666.0,0.00562905]
[1724009570997,5.62615,2666.1,2666.0,0.00562905]
[1724009571603,5.62615,2666.1,2666.0,0.00892443]
[1724009571799,1.87495,2666.1,2666.0,0.00892443]
[1724009572098,5.62615,2666.1,2666.0,0.00892443]
[1724009572407,2.21453,2666.2,2666.0,0.36972443]
[1724009572898,2.21453,2666.2,2666.0,2.24474443]
[1724009573089,0.3396,2666.2,2666.0,2.24474443]
[1724009573285,1.87485,2666.3,2666.1,0.945]
[1724009573491,2.21945,2666.3,2666.1,0.945]
[1724009574397,2.21945,2666.3,2666.0,2.61224443]
[1724009576001,1.87489,2666.2,2666.0,0.73722443]
[1724009576495,1.87489,2666.2,2666.0,0.36972443]
[1724009576699,1.87489,2666.2,2666.0,0.00892443]
[1724009576700,2.22473,2666.2,2666.0,0.00892443]
[1724009578199,2.22473,2666.2,2666.0,0.35842443]
[1724009580502,1.87495,2666.1,2666.0,0.00892443]
[1724009580896,2.22473,2666.2,2666.0,0.00892443]
[1724009581396,0.3498,2666.2,2666.0,0.00892443]
[1724009581799,2.22472,2666.2,2666.0,0.00892443]
[1724009583498,1.87495,2666.1,2666.0,0.00892443]
[1724009589002,1.87495,2666.1,2665.4,3.2078]
[1724009589003,1.87502,2666.0,2665.4,1.87542]
[1724009589199,1.8753,2665.6,2665.5,0.3558]
[1724009589398,1.8753,2665.6,2665.4,0.3418]
[1724009589607,0.6937,2665.5,2665.4,0.3418]
[1724009590005,0.6937,2665.5,2665.4,0.34601225]
[1724009590804,2.56907,2665.5,2665.4,0.34601225]
[1724009591021,0.6937,2665.5,2665.4,0.34601225]
[1724009591209,0.3429,2665.5,2665.4,2.22146225]
[1724009591413,2.94897937,2666.1,2665.6,1.87527]
[1724009591414,2.58727,2666.1,2665.6,1.87527]
[1724009591709,1.87519,2665.8,2665.5,2.24263]
[1724009592808,1.87519,2665.8,2665.6,2.2137]
[1724009593503,1.87506,2666.0,2665.7,1.87519]
[1724009593800,1.87506,2666.0,2665.8,0.3501]
[1724009593998,1.87509,2665.9,2665.8,0.7064]
[1724009595909,1.87509,2665.9,2665.8,0.3563]
[1724009596711,0.945,2665.9,2665.5,0.3501]
[1724009596912,1.8753,2665.6,2665.5,0.3501]
[1724009599014,1.8753,2665.6,2665.4,3.16514225]
[1724009599216,1.8753,2665.6,2665.4,1.28971225]
[1724009600211,1.8753,2665.6,2665.4,3.16514225]
[1724009600413,1.8753,2665.6,2665.4,1.28971225]
[1724009600913,1.8753,2665.6,2665.4,3.16512225]
[1724009602509,1.8753,2665.6,2665.4,1.28971225]
[1724009603921,1.8753,2665.6,2665.4,0.34471225]
[1724009604110,1.8753,2665.6,2665.5,0.945]
[1724009610620,1.8753,2665.6,2665.4,0.34471225]
[1724009612811,1.87537,2665.5,2665.4,0.34471225]
[1724009613015,1.87537,2665.5,2665.4,0.00421225]
[1724009613220,2.22497,2665.5,2665.4,0.00421225]
[1724009613513,7.86254,2665.5,2665.4,0.00421225]
[1724009613722,3.75104,2665.3,2665.2,0.00562905]
[1724009613915,7.90384,2665.3,2665.2,0.00562905]
[1724009614220,16.65584,2665.3,2665.2,0.00562905]
[1724009614417,16.65584,2665.3,2664.9,0.3426]
[1724009614418,1.87573,2665.0,2664.9,0.3426]
[1724009614620,2.82073,2665.0,2664.9,0.34711752]
[1724009615525,1.87573,2665.0,2664.9,0.34711752]
[1724009615826,3.16239,2665.2,2664.9,3.16788752]
[1724009616121,1.2868,2665.2,2665.0,0.3533]
[1724009616321,3.1624,2665.2,2665.1,0.3595]
[1724009616820,6.9144,2665.2,2665.1,0.3595]
[1724009617017,2.21617,2665.5,2665.1,0.3595]
[1724009617018,1.2858,2665.5,2665.1,0.3595]
[1724009617219,1.87549,2665.4,2665.1,0.3595]
[1724009617445,1.87549,2665.4,2665.2,0.3613]
[1724009624625,1.8755,2665.4,2665.2,0.3613]
[1724009625422,1.2858,2665.5,2665.2,0.3613]
[1724009625423,2.82041,2665.5,2665.2,0.3613]
[1724009625736,5.31362081,2666.0,2665.4,4.1528]
[1724009625737,2.94897937,2666.0,2665.4,4.1528]
[1724009625938,3.16237,2666.4,2665.9,2.82005]
[1724009626230,3.16234,2666.4,2666.1,0.945]
[1724009626433,0.00857398,2666.5,2666.2,0.945]
[1724009626618,0.00857398,2666.5,2666.4,0.945]
[1724009628537,0.00857398,2666.5,2666.1,1.88054905]
[1724009630331,0.00857398,2666.5,2666.1,0.00562905]
[1724009631928,0.00857398,2666.5,2666.2,1.87488]
[1724009632826,0.00857398,2666.5,2666.1,1.88053905]
[1724009635832,0.00857398,2666.5,2666.2,1.87487]
[1724009637142,0.00857398,2666.5,2666.3,1.87481]
[1724009637444,0.00857398,2666.5,2666.4,0.3471]
[1724009645741,0.00857398,2666.5,2666.1,0.00562905]
[1724009645947,0.00857398,2666.5,2666.1,0.36132905]
[1724009646150,1.87484,2666.3,2666.1,0.36132905]
[1724009646347,0.7212,2666.2,2666.1,0.36132905]
[1724009647755,0.3541,2666.2,2666.1,0.36132905]
[1724009648644,1.87475,2666.4,2666.1,2.23627905]
[1724009648858,1.87475,2666.4,2666.1,0.36132905]
[1724009650557,2.81975,2666.4,2666.1,1.30632905]
[1724009653564,2.81975,2666.4,2666.1,3.18127905]
[1724009655252,0.945,2666.4,2666.2,1.87488]
[1724009655459,2.61439398,2666.5,2666.2,2.81988]
[1724009655855,2.61439398,2666.5,2666.2,0.945]
[1724009656055,2.61439398,2666.5,2666.2,2.81988]
[1724009656362,2.24725398,2666.5,2666.2,2.81988]
[1724009656656,2.24725398,2666.5,2666.2,3.18238]
[1724009658560,0.37257398,2666.5,2666.2,3.18238]
[1724009659359,0.37257398,2666.5,2666.4,1.87474]
[1724009660052,0.37257398,2666.5,2666.4,2.81974]
[1724009661655,0.00857398,2666.5,2666.4,2.81974]
[1724009662360,0.00857398,2666.5,2666.4,0.945]
[1724009663456,0.00857398,2666.5,2666.4,3.18374]
[1724009664065,0.00857398,2666.5,2666.4,1.309]
[1724009664760,0.00857398,2666.5,2666.4,3.18374]
[1724009666256,0.00857398,2666.5,2666.4,6.93414]
[1724009667758,0.00857398,2666.5,2666.4,0.364]
[1724009668164,0.37077398,2666.5,2666.4,0.364]
[1724009668859,0.37077398,2666.5,2666.4,0.7014]
[1724009672067,0.37077398,2666.5,2666.4,2.57614]
[1724009672471,0.37077398,2666.5,2666.4,0.7014]
[1724009676583,0.37077398,2666.5,2666.4,2.57614]
[1724009678477,0.00857398,2666.5,2666.4,3.52114]
[1724009703897,6.14385845,2667.0,2666.9,1.87439]
[1724009704105,4.81029845,2667.2,2667.0,1.87428]
[1724009704398,3.67145845,2667.3,2667.2,1.87418]
[1724009704733,0.3697,2667.3,2667.2,0.945]
[1724009704996,0.37273487,2667.3,2667.2,0.94958642]
[1724009706792,0.00303487,2667.3,2667.2,2.82376642]
[1724009707400,0.00303487,2667.3,2667.2,0.94958642]
[1724009710296,0.00303487,2667.3,2667.2,2.82376642]
[1724009712699,3.2078,2668.0,2667.2,7.90618642]
[1724009712903,0.3719,2667.9,2667.7,2.81879]
[1724009713093,0.3719,2667.9,2667.8,0.6934]
[1724009713094,2.24559,2667.9,2667.8,0.6934]
[1724009713292,0.3719,2667.9,2667.8,0.6934]
[1724009713710,0.37482352,2667.9,2667.8,0.6934]
[1724009714004,0.00292352,2667.9,2667.8,1.6384]
[1724009714504,0.00292352,2667.9,2667.8,3.51216]
[1724009714706,0.00292352,2667.9,2667.8,1.6384]
[1724009717501,0.00292352,2667.9,2667.8,0.6934]
[1724009718899,0.00292352,2667.9,2667.8,1.6384]
[1724009719204,0.00292352,2667.9,2667.8,3.51216]
[1724009719802,0.00292352,2667.9,2667.8,1.6384]
[1724009720011,1.87661352,2667.9,2667.7,0.5]
[1724009720203,0.3427,2667.8,2667.7,1.445]
[1724009721600,2.21646,2667.8,2667.7,1.445]
[1724009726104,0.3427,2667.8,2667.7,3.31883]
[1724009726308,1.87665352,2667.9,2667.8,1.87376]